bitfinex-derivatives/quotes_BTCF0:USTF0_20251110
["timestamp","ask_amount","ask_price","bid_price","bid_amount"]
[1762762582085,0.07316,106360.0,106350.0,0.1364696]
[1762762582289,0.39848,106360.0,106350.0,0.31498455]
[1762762582690,0.39848,106360.0,106350.0,1.03658455]
[1762762583586,0.40048,106360.0,106350.0,1.03758455]
[1762762585278,0.40248,106360.0,106350.0,1.03858455]
[1762762586587,0.40248,106360.0,106350.0,0.95429719]
[1762762587095,0.40248,106360.0,106350.0,1.07241218]
[1762762588891,0.4965208,106360.0,106350.0,0.98038262]
[1762762589098,0.58855036,106360.0,106350.0,0.98038262]
[1762762589695,0.58855036,106360.0,106350.0,0.95917262]
[1762762589996,0.58855036,106360.0,106350.0,0.81019466]
[1762762590397,0.58855036,106360.0,106350.0,0.90424426]
[1762762590690,0.58855036,106360.0,106350.0,0.81019466]
[1762762590884,0.58855036,106360.0,106350.0,0.79332423]
[1762762593095,0.68057992,106360.0,106350.0,0.79332423]
[1762762593296,0.58855036,106360.0,106350.0,0.79332423]
[1762762593888,0.68057992,106360.0,106350.0,0.79332423]
[1762762594095,0.68057992,106360.0,106350.0,0.07172423]
[1762762594395,0.68057992,106360.0,106340.0,0.44533772]
[1762762594396,0.1699096,106350.0,106340.0,0.44533772]
[1762762594593,0.35396872,106350.0,106340.0,0.44533772]
[1762762594794,0.35396872,106350.0,106340.0,0.36094109]
[1762762595492,0.35396872,106350.0,106340.0,0.36594109]
[1762762595692,0.35596872,106350.0,106340.0,0.36813912]
[1762762595891,0.35696872,106350.0,106340.0,0.37113912]
[1762762596801,0.35696872,106350.0,106340.0,0.36813912]
[1762762596802,0.35596872,106350.0,106340.0,0.36813912]
[1762762597101,0.35696872,106350.0,106340.0,0.36413912]
[1762762597302,0.36296872,106350.0,106340.0,0.36513912]
[1762762598001,0.36396872,106350.0,106340.0,0.36513912]
[1762762598492,0.36596872,106350.0,106340.0,0.36513912]
[1762762599603,0.36096872,106350.0,106340.0,0.36413912]
[1762762599798,0.36196872,106350.0,106340.0,0.36713912]
[1762762600303,0.35696872,106350.0,106340.0,0.37113912]
[1762762601702,0.35696872,106350.0,106340.0,0.43102912]
[1762762604296,0.35696872,106350.0,106340.0,0.4985826]
[1762762608197,0.35696872,106350.0,106340.0,0.1377826]
[1762762608402,0.1545996,106350.0,106340.0,0.1561126]
[1762762608707,0.26493916,106350.0,106340.0,0.53375575]
[1762762609001,0.1729096,106350.0,106340.0,0.51542575]
[1762762609194,0.35696872,106350.0,106340.0,0.43102912]
[1762762609395,0.26493916,106350.0,106340.0,0.43102912]
[1762762609898,0.1729096,106350.0,106340.0,0.43102912]
[1762762610097,0.26493916,106350.0,106340.0,0.43102912]
[1762762610299,0.26493916,106350.0,106340.0,0.52508762]
[1762762610802,0.26493916,106350.0,106340.0,0.60948425]
[1762762611005,0.26488715,106350.0,106340.0,0.60948425]
[1762762611204,0.26488715,106350.0,106340.0,0.51542575]
[1762762611406,0.26488715,106350.0,106340.0,0.60948425]
[1762762611599,0.26488715,106350.0,106340.0,0.62164425]
[1762762613504,0.26488715,106350.0,106340.0,0.53724762]
[1762762613805,0.26488715,106350.0,106340.0,0.51073969]
[1762762614805,0.17083755,106350.0,106340.0,0.51073969]
[1762762615604,0.17083755,106350.0,106340.0,0.60479819]
[1762762616108,0.26488715,106350.0,106340.0,0.49857969]
[1762762616307,0.3568647,106350.0,106340.0,0.49857969]
[1762762617410,0.3568647,106350.0,106340.0,0.13777969]
[1762762617712,0.3568647,106350.0,106340.0,0.49857969]
[1762762618810,0.3568647,106350.0,106340.0,0.43102912]
[1762762619016,0.2628151,106350.0,106340.0,0.52508762]
[1762762621619,0.2628151,106350.0,106340.0,0.60948425]
[1762762621816,0.07886,106350.0,106340.0,0.54203762]
[1762762622015,0.17083755,106350.0,106340.0,0.54203762]
[1762762622204,0.2628151,106350.0,106340.0,0.54203762]
[1762762622407,0.2445051,106350.0,106340.0,0.54203762]
[1762762622618,0.2445051,106350.0,106340.0,0.62643425]
[1762762622921,0.16841755,106350.0,106340.0,0.54203762]
[1762762623217,0.2603951,106350.0,106340.0,0.54203762]
[1762762624021,0.06055,106350.0,106340.0,0.63401517]
[1762762624213,0.12264755,106350.0,106340.0,0.62643425]
[1762762624409,0.44756755,106350.0,106340.0,0.62643425]
[1762762624605,0.41989755,106350.0,106340.0,0.62643425]
[1762762624811,0.47508755,106350.0,106340.0,0.62643425]
[1762762625513,0.38311,106350.0,106340.0,0.62643425]
[1762762625709,0.47508755,106350.0,106340.0,0.62643425]
[1762762626109,0.5670651,106350.0,106340.0,0.53237575]
[1762762626711,0.6770047,106350.0,106340.0,0.53237575]
[1762762626912,0.6770047,106350.0,106340.0,0.43102912]
[1762762627211,0.5829551,106350.0,106340.0,0.43102912]
[1762762627406,0.5829551,106350.0,106340.0,0.52508762]
[1762762627620,0.5829551,106350.0,106340.0,0.62181425]
[1762762627821,0.49097755,106350.0,106340.0,0.62181425]
[1762762628720,0.58502715,106350.0,106340.0,0.52775575]
[1762762629130,0.58502715,106350.0,106340.0,0.59075912]
[1762762629414,0.6770047,106350.0,106340.0,0.59075912]
[1762762629712,0.58502715,106350.0,106340.0,0.22995912]
[1762762630413,0.6770047,106350.0,106340.0,0.59075912]
[1762762630614,0.6770047,106350.0,106340.0,0.22995912]
[1762762631019,1.0378047,106350.0,106340.0,0.21762912]
[1762762631212,1.0378047,106350.0,106340.0,0.28536047]
[1762762631410,1.0378047,106350.0,106340.0,0.21762912]
[1762762631807,1.0378047,106350.0,106340.0,0.22326537]
[1762762632019,0.1609573,106330.0,106320.0,0.19175499]
[1762762632218,1.0305924,106330.0,106320.0,0.26022675]
[1762762632416,0.6697924,106330.0,106320.0,0.14211176]
[1762762632616,1.0305924,106330.0,106320.0,0.14211176]
[1762762633325,0.1651562,106320.0,106310.0,0.14005482]
[1762762633520,0.7099113,106320.0,106310.0,0.05764912]
[1762762634021,0.80188885,106320.0,106310.0,0.05545109]
[1762762634424,0.80288885,106320.0,106310.0,0.05745109]
[1762762634617,0.7129113,106320.0,106310.0,0.05845109]
[1762762634920,0.80488885,106320.0,106310.0,0.05645109]
[1762762635111,0.80688885,106320.0,106310.0,0.00214109]
[1762762635311,0.1651722,106300.0,106290.0,0.21667928]
[1762762635520,1.0348473,106300.0,106290.0,0.14836061]
[1762762636924,1.0358473,106300.0,106290.0,0.14836061]
[1762762637124,1.0378473,106300.0,106290.0,0.14836061]
[1762762637528,0.6770473,106300.0,106290.0,0.14836061]
[1762762638818,1.0378473,106300.0,106290.0,0.01432222]
[1762762639013,0.6770473,106300.0,106290.0,0.43140025]
[1762762639323,0.3521273,106300.0,106290.0,0.44781025]
[1762762639522,0.6611973,106300.0,106290.0,0.44781025]
[1762762639825,0.6611973,106300.0,106290.0,0.52261685]
[1762762640129,0.6774773,106300.0,106290.0,0.16181685]
[1762762641524,0.6774773,106300.0,106290.0,0.04294025]
[1762762641525,0.76945485,106300.0,106290.0,0.04294025]
[1762762641732,1.0382773,106300.0,106290.0,0.07060025]
[1762762642330,1.0382773,106300.0,106290.0,0.06840222]
[1762762643324,1.0382773,106300.0,106290.0,0.07060025]
[1762762644837,1.0382773,106300.0,106290.0,0.14606926]
[1762762645730,1.13025485,106300.0,106290.0,0.14606926]
[1762762645930,1.0382773,106300.0,106290.0,0.14606926]
[1762762646334,0.1641699,106280.0,106270.0,0.48225255]
[1762762646638,0.58114745,106280.0,106270.0,0.48445058]
[1762762647137,0.673125,106280.0,106270.0,0.48445058]
[1762762647337,0.673125,106280.0,106270.0,0.498644]
[1762762647539,0.675125,106280.0,106270.0,0.137844]
[1762762648536,0.678125,106280.0,106270.0,0.137844]
[1762762649530,0.678125,106280.0,106270.0,0.14511144]
[1762762655640,1.038925,106280.0,106270.0,0.14511144]
[1762762657250,1.037925,106280.0,106270.0,0.14511144]
[1762762657442,0.677125,106280.0,106270.0,0.14511144]
[1762762657837,0.674125,106280.0,106270.0,0.50591144]
[1762762658037,0.676125,106280.0,106270.0,0.14511144]
[1762762659046,0.676125,106280.0,106270.0,0.50591144]
[1762762661052,0.676125,106280.0,106270.0,0.14511144]
[1762762661757,0.676125,106280.0,106270.0,0.50591144]
[1762762662140,0.15046755,106280.0,106270.0,0.61644054]
[1762762662344,0.15046755,106280.0,106270.0,0.52232144]
[1762762662345,0.6779153,106280.0,106270.0,0.52232144]
[1762762662551,0.6779153,106280.0,106270.0,0.14511144]
[1762762663251,0.6779153,106280.0,106270.0,0.50591144]
[1762762663655,0.5838051,106280.0,106270.0,0.68381309]
[1762762663856,0.6779153,106280.0,106270.0,0.58969399]
[1762762664054,0.6779153,106280.0,106270.0,0.68381309]
[1762762664255,0.5838051,106280.0,106270.0,0.68381309]
[1762762664956,0.05849,106280.0,106270.0,0.77579064]
[1762762665260,0.003,106280.0,106270.0,0.70841809]
[1762762665454,0.3282,106280.0,106270.0,1.12023937]
[1762762665755,0.3282,106280.0,106270.0,0.94365809]
[1762762665956,0.3282,106280.0,106270.0,1.06177308]
[1762762666253,0.3282,106280.0,106270.0,0.82653308]
[1762762666855,0.35562,106280.0,106270.0,0.82653308]
[1762762667354,0.38369,106280.0,106270.0,0.82653308]
[1762762667955,0.54170785,106280.0,106270.0,0.73455553]
[1762762668255,0.54170785,106280.0,106270.0,0.79292912]
[1762762668857,0.54170785,106280.0,106270.0,0.70095157]
[1762762669253,0.54170785,106280.0,106270.0,0.79292912]
[1762762669460,0.3282,106280.0,106270.0,0.79292912]
[1762762669653,0.44434755,106280.0,106270.0,0.70841809]
[1762762669958,0.44434755,106280.0,106270.0,0.79293806]
[1762762670158,0.42017755,106280.0,106270.0,0.79293806]
[1762762670655,0.44434755,106280.0,106270.0,0.79293806]
[1762762670862,0.42017755,106280.0,106270.0,0.79293806]
[1762762671859,0.3282,106280.0,106270.0,0.79293806]
[1762762672061,0.42017755,106280.0,106270.0,0.79293806]
[1762762672358,0.42017755,106280.0,106270.0,0.70841809]
[1762762672958,0.3282,106280.0,106270.0,0.61644054]
[1762762673361,0.35237,106280.0,106270.0,0.61644054]
[1762762674261,0.37808,106280.0,106270.0,0.61644054]
[1762762674662,0.35237,106280.0,106270.0,0.61644054]
[1762762676962,0.35237,106280.0,106270.0,0.70851247]
[1762762677263,0.35237,106280.0,106270.0,0.61644054]
[1762762677662,0.37808,106280.0,106270.0,0.61644054]
[1762762678760,0.4721904,106280.0,106270.0,0.61644054]
[1762762680164,0.56426233,106280.0,106270.0,0.52232144]
[1762762680358,0.56426233,106280.0,106270.0,0.59043141]
[1762762680359,0.57842233,106280.0,106270.0,0.59043141]
[1762762680764,0.57842233,106280.0,106270.0,0.22963141]
[1762762681563,0.57842233,106280.0,106270.0,0.14511144]
[1762762681760,0.57842233,106280.0,106270.0,0.21274795]
[1762762681959,0.57842233,106280.0,106270.0,0.21023795]
[1762762682365,0.57842233,106280.0,106270.0,0.15866795]
[1762762682765,0.93922233,106280.0,106270.0,0.15866795]
[1762762683767,0.57842233,106280.0,106270.0,0.51946795]
[1762762684064,0.57842233,106280.0,106270.0,0.54438795]
[1762762684260,0.02717,106280.0,106270.0,0.76803918]
[1762762684469,0.35225,106280.0,106270.0,0.40723918]
[1762762684657,0.32808,106280.0,106270.0,0.54223763]
[1762762684853,0.05002109,106290.0,106280.0,0.1593904]
[1762762685059,0.37510109,106290.0,106280.0,0.96770737]
[1762762685259,0.05002109,106290.0,106280.0,1.0597793]
[1762762685461,0.37510109,106290.0,106280.0,1.0597793]
[1762762685661,0.00014109,106290.0,106280.0,1.0597793]
[1762762685857,0.25092001,106290.0,106280.0,1.09337535]
[1762762686065,0.25292001,106290.0,106280.0,1.09337535]
[1762762686763,0.25092001,106290.0,106280.0,1.09337535]
[1762762686962,0.25292001,106290.0,106280.0,1.32857535]
[1762762687168,0.25392001,106290.0,106280.0,1.32857535]
[1762762687369,0.25392001,106290.0,106280.0,1.41306786]
[1762762687562,0.25392001,106290.0,106280.0,1.29495287]
[1762762688164,0.25392001,106290.0,106280.0,1.05975287]
[1762762688365,0.25392001,106290.0,106280.0,1.29495287]
[1762762689072,0.25392001,106290.0,106280.0,1.05975287]
[1762762689372,0.25392001,106290.0,106280.0,1.29495287]
[1762762689767,0.25011089,106290.0,106280.0,1.20288094]
[1762762690075,0.25011089,106290.0,106280.0,1.29495287]
[1762762690766,0.21105089,106290.0,106280.0,1.89495287]
[1762762690969,0.00014109,106300.0,106290.0,0.1441717]
[1762762691162,0.32518109,106300.0,106290.0,0.59924166]
[1762762691358,0.37506109,106300.0,106290.0,0.59924166]
[1762762692072,0.37706109,106300.0,106290.0,0.60024166]
[1762762692473,0.37706109,106300.0,106290.0,0.50816973]
[1762762692677,0.37706109,106300.0,106290.0,0.60024166]
[1762762693478,0.37806109,106300.0,106290.0,0.60024166]
[1762762695274,0.47013302,106300.0,106290.0,0.50816973]
[1762762695472,0.48429302,106300.0,106290.0,0.50816973]
[1762762695881,0.39222109,106300.0,106290.0,0.50816973]
[1762762696178,0.48631399,106300.0,106290.0,0.50816973]
[1762762696380,0.57838592,106300.0,106290.0,0.59266224]
[1762762697783,0.57638592,106300.0,106290.0,0.59166224]
[1762762697978,0.58038592,106300.0,106290.0,0.59266224]
[1762762699384,0.54650126,106300.0,106290.0,0.59266224]
[1762762699587,0.57123126,106300.0,106290.0,0.59266224]
[1762762700488,0.47713836,106300.0,106290.0,0.50816973]
[1762762700688,0.57123136,106300.0,106290.0,0.50816973]
[1762762701287,0.47713836,106300.0,106290.0,0.50816973]
[1762762701588,0.57123136,106300.0,106290.0,0.50816973]
[1762762702788,0.47713836,106300.0,106290.0,0.50816973]
[1762762703290,0.57123136,106300.0,106290.0,0.50816973]
[1762762703984,0.66330329,106300.0,106290.0,0.45645222]
[1762762704190,0.57123136,106300.0,106290.0,0.45645222]
[1762762704585,0.66330329,106300.0,106290.0,0.07073222]
[1762762704985,0.47915943,106300.0,106290.0,0.07073222]
[1762762705281,1.02410329,106300.0,106290.0,0.02829419]
[1762762705881,0.1456707,106280.0,106270.0,0.598267]
[1762762706083,0.56274263,106280.0,106270.0,0.60046503]
[1762762706284,0.56274263,106280.0,106270.0,0.69458463]
[1762762706484,0.46863193,106280.0,106270.0,0.69458463]
[1762762706788,0.56274273,106280.0,106270.0,0.69458463]
[1762762707293,0.56374273,106280.0,106270.0,0.69458463]
[1762762707591,0.56374273,106280.0,106270.0,0.69558463]
[1762762707793,0.47163193,106280.0,106270.0,0.69558463]
[1762762711004,0.56574273,106280.0,106270.0,0.69558463]
[1762762711989,0.56574273,106280.0,106270.0,0.60146503]
[1762762712196,0.57990273,106280.0,106270.0,0.65503473]
[1762762712399,0.57990273,106280.0,106270.0,0.59514222]
[1762762712598,0.57990273,106280.0,106270.0,0.50102252]
[1762762713697,0.57990273,106280.0,106270.0,0.45102252]
[1762762713894,0.57990273,106280.0,106270.0,0.54514222]
[1762762714207,0.57990283,106280.0,106270.0,0.56109222]
[1762762715308,0.57990283,106280.0,106270.0,0.62863866]
[1762762715509,0.57990283,106280.0,106270.0,0.641638]
[1762762716813,0.57990283,106280.0,106270.0,0.5475183]
[1762762717111,0.37956,106280.0,106270.0,0.641638]
[1762762717301,0.3796,106280.0,106270.0,0.57409156]
[1762762717504,0.35277,106280.0,106270.0,0.57409156]
[1762762717712,0.44484193,106280.0,106270.0,0.57409156]
[1762762717902,0.35277,106280.0,106270.0,0.57409156]
[1762762718107,0.44484193,106280.0,106270.0,0.57409156]
[1762762718415,0.47167193,106280.0,106270.0,0.57409156]
[1762762721210,0.47167193,106280.0,106270.0,0.65858407]
[1762762721512,0.35277,106280.0,106270.0,0.57409156]
[1762762721700,0.35277,106280.0,106270.0,0.65858407]
[1762762722908,0.35277,106280.0,106270.0,0.80598407]
[1762762723107,0.3796,106280.0,106270.0,0.80598407]
[1762762724016,0.3796,106280.0,106270.0,0.72149156]
[1762762724199,0.3796,106280.0,106270.0,0.92406439]
[1762762724605,0.3796,106280.0,106270.0,0.8059494]
[1762762724805,0.473711,106280.0,106270.0,0.8059494]
[1762762725516,0.32804,106280.0,106270.0,0.8059494]
[1762762725815,0.32804,106280.0,106270.0,0.89802133]
[1762762726312,0.32804,106280.0,106270.0,0.72149156]
[1762762726513,0.32804,106280.0,106270.0,0.81356349]
[1762762726713,0.32804,106280.0,106270.0,0.72149156]
[1762762726904,0.32804,106280.0,106270.0,0.81356349]
[1762762727917,0.56578293,106280.0,106270.0,0.72149166]
[1762762728212,0.56578293,106280.0,106270.0,0.80599516]
[1762762728919,0.56578293,106280.0,106270.0,0.65859516]
[1762762729914,0.473711,106280.0,106270.0,0.65859516]
[1762762730119,0.56578293,106280.0,106270.0,0.65859516]
[1762762732818,0.57388293,106280.0,106270.0,0.64264516]
[1762762733121,0.57388293,106280.0,106270.0,0.50969195]
[1762762734817,0.57388293,106280.0,106270.0,0.49921861]
[1762762735021,0.66602378,106280.0,106270.0,0.49921861]
[1762762735322,0.66602378,106280.0,106270.0,0.13841861]
[1762762737124,0.66602378,106280.0,106270.0,0.20611498]
[1762762737509,0.66602378,106280.0,106270.0,0.18150498]
[1762762737928,0.66602378,106280.0,106270.0,0.20549498]
[1762762740724,0.66602378,106280.0,106270.0,0.66041478]
[1762762740922,0.66602378,106280.0,106270.0,0.08183679]
[1762762740923,0.75813017,106280.0,106270.0,0.08183679]
[1762762741119,0.1561198,106270.0,106260.0,0.0845035]
[1762762741311,0.04961,106260.0,106250.0,0.04754088]
[1762762741517,0.66715148,106260.0,106250.0,0.06423891]
[1762762741817,0.55886278,106260.0,106250.0,0.15837641]
[1762762742216,0.37465,106260.0,106250.0,0.17085162]
[1762762742424,0.37465,106260.0,106250.0,0.26295801]
[1762762742628,0.55886278,106260.0,106250.0,0.17085162]
[1762762743627,0.55886278,106260.0,106250.0,0.53165162]
[1762762744028,0.55986278,106260.0,106250.0,0.53165162]
[1762762744229,0.55986278,106260.0,106250.0,0.60510836]
[1762762744926,0.55986278,106260.0,106250.0,0.69721475]
[1762762744927,0.46775639,106260.0,106250.0,0.69721475]
[1762762745428,0.56186278,106260.0,106250.0,0.60510836]
[1762762745726,0.46975639,106260.0,106250.0,0.69721475]
[1762762748126,0.65599148,106260.0,106250.0,0.69721475]
[1762762748327,0.56186278,106260.0,106250.0,0.69721475]
[1762762748531,0.56186278,106260.0,106250.0,0.60510836]
[1762762748728,0.56186278,106260.0,106250.0,0.69721475]
[1762762748928,0.65599148,106260.0,106250.0,0.69721475]
[1762762750832,0.65599148,106260.0,106250.0,0.60510836]
[1762762751328,0.65599148,106260.0,106250.0,0.68961186]
[1762762754428,0.65599148,106260.0,106250.0,0.23467436]
[1762762754730,0.65599148,106260.0,106250.0,0.32881196]
[1762762754935,0.65599148,106260.0,106250.0,0.23467436]
[1762762755329,0.56186278,106260.0,106250.0,0.32881196]
[1762762755634,0.65599158,106260.0,106250.0,0.32881196]
[1762762756227,0.66838158,106260.0,106250.0,0.22017436]
[1762762756430,1.02918158,106260.0,106250.0,0.22017436]
[1762762757130,1.12128797,106260.0,106250.0,0.22017436]
[1762762757331,1.12128797,106260.0,106250.0,0.11168086]
[1762762757725,0.1518565,106240.0,106230.0,0.1079435]
[1762762757923,0.04961,106230.0,106220.0,0.2405963]
[1762762758128,0.04961,106240.0,106230.0,0.1560853]
[1762762758328,1.01384928,106240.0,106230.0,0.06412803]
[1762762758528,0.55890278,106240.0,106230.0,0.15828333]
[1762762758728,0.55901115,106240.0,106230.0,0.15828333]
[1762762759032,0.65315765,106240.0,106230.0,0.15828333]
[1762762759432,0.56001115,106240.0,106230.0,0.17083911]
[1762762760332,0.56201115,106240.0,106230.0,0.17083911]
[1762762760733,0.56201115,106240.0,106230.0,0.24720181]
[1762762761335,0.32818837,106240.0,106230.0,0.24720181]
[1762762761523,0.00310837,106240.0,106230.0,0.79221459]
[1762762761838,0.32822837,106240.0,106230.0,0.56702531]
[1762762762138,0.15059639,106280.0,106270.0,0.1477699]
[1762762762326,0.92862278,106280.0,106270.0,0.14996793]
[1762762762635,1.02273378,106280.0,106270.0,0.14996793]
[1762762762836,0.92485958,106280.0,106270.0,0.14996793]
[1762762763228,0.92485958,106280.0,106270.0,0.05584803]
[1762762763621,0.92985958,106280.0,106270.0,0.05584803]
[1762762764023,0.93285958,106280.0,106270.0,0.05584803]
[1762762765740,0.93285968,106280.0,106270.0,0.05584803]
[1762762768236,0.83874858,106280.0,106270.0,0.14996803]
[1762762768538,0.93285968,106280.0,106270.0,0.05584803]
[1762762769741,0.93285968,106280.0,106270.0,0.14996803]
[1762762772340,0.93285968,106280.0,106270.0,0.22623423]
[1762762772840,0.8465211,106280.0,106270.0,0.22623423]
[1762762773030,0.93285968,106280.0,106270.0,0.22623423]
[1762762774136,0.93285968,106280.0,106270.0,0.29382264]
[1762762775343,0.83874858,106280.0,106270.0,0.29382264]
[1762762775643,0.93285968,106280.0,106270.0,0.29382264]
[1762762776038,0.83874858,106280.0,106270.0,0.29382264]
[1762762776344,0.47794858,106280.0,106270.0,0.29382264]
[1762762777445,0.47794858,106280.0,106270.0,0.30981264]
[1762762777739,0.57205968,106280.0,106270.0,0.30981264]
[1762762778545,0.47794858,106280.0,106270.0,0.30981264]
[1762762779446,0.4857211,106280.0,106270.0,0.30981264]
[1762762779637,0.57205968,106280.0,106270.0,0.30981264]
[1762762781147,0.57205968,106280.0,106270.0,0.29382284]
[1762762781647,0.4857211,106280.0,106270.0,0.29382284]
[1762762781848,0.57205968,106280.0,106270.0,0.29382284]
[1762762782854,0.66994334,106280.0,106270.0,0.29382284]
[1762762783744,0.57583224,106280.0,106270.0,0.29382284]
[1762762783944,0.57583224,106280.0,106270.0,0.30981284]
[1762762784140,0.56773224,106280.0,106270.0,0.30981284]
[1762762785235,0.66184364,106280.0,106270.0,0.30981284]
[1762762785646,0.66994364,106280.0,106270.0,0.30981284]
[1762762788351,0.57583224,106280.0,106270.0,0.30981284]
[1762762789651,0.39161,106280.0,106270.0,0.30981284]
[1762762789852,0.57583224,106280.0,106270.0,0.30981284]
[1762762791148,0.56773224,106280.0,106270.0,0.30981284]
[1762762791949,0.56773224,106280.0,106270.0,0.24222443]
[1762762792150,0.56773224,106280.0,106270.0,0.31000013]
[1762762794057,0.38351,106280.0,106270.0,0.31000013]
[1762762794248,0.47863112,106280.0,106270.0,0.60302443]
[1762762794556,0.47863112,106280.0,106270.0,0.81325054]
[1762762794748,0.47863112,106280.0,106270.0,0.80581937]
[1762762794948,0.4786017,106280.0,106270.0,0.68770438]
[1762762797258,0.38652,106280.0,106270.0,0.68770438]
[1762762798852,0.4786017,106280.0,106270.0,0.68770438]
[1762762799055,0.38652,106280.0,106270.0,0.77978608]
[1762762799259,0.38652,106280.0,106270.0,0.68770438]
[1762762799651,0.38652,106280.0,106270.0,0.77978608]
[1762762800352,0.38652,106280.0,106270.0,0.68770438]
[1762762800855,0.5727131,106280.0,106270.0,0.60302443]
[1762762801062,0.5727131,106280.0,106270.0,0.72113942]
[1762762801358,0.5727132,106280.0,106270.0,0.60302443]
[1762762802260,0.4786017,106280.0,106270.0,0.60302443]
[1762762803060,0.4786017,106280.0,106270.0,0.72113942]
[1762762803260,0.38652,106280.0,106270.0,0.72113942]
[1762762803460,0.38652,106280.0,106270.0,0.89782059]
[1762762803964,0.38652,106280.0,106270.0,0.7797056]
[1762762806051,0.008,106280.0,106270.0,1.0149456]
[1762762806246,0.37201,106320.0,106310.0,0.148255]
[1762762806247,0.6116478,106320.0,106310.0,0.148255]
[1762762806451,0.9366078,106320.0,106310.0,0.21811091]
[1762762807060,0.9366078,106320.0,106310.0,0.15045303]
[1762762807265,0.9366078,106320.0,106310.0,0.23502538]
[1762762807456,0.9496078,106320.0,106310.0,0.15045303]
[1762762807764,0.5775978,106320.0,106310.0,0.16700303]
[1762762808061,0.4705217,106320.0,106310.0,0.23460645]
[1762762808262,0.39544,106320.0,106310.0,0.23560645]
[1762762808766,0.4875217,106320.0,106310.0,0.32620139]
[1762762809065,0.4875217,106320.0,106310.0,0.16800303]
[1762762809262,0.5815978,106320.0,106310.0,0.23554318]
[1762762809464,0.4875217,106320.0,106310.0,0.23554318]
[1762762810167,0.4765217,106320.0,106310.0,0.23554318]
[1762762810462,0.4725217,106320.0,106310.0,0.23654318]
[1762762812666,0.4725217,106320.0,106310.0,0.31235918]
[1762762818170,0.4725217,106320.0,106310.0,0.24481903]
[1762762818371,0.4725217,106320.0,106310.0,0.31235918]
[1762762819765,0.566598,106320.0,106310.0,0.31235918]
[1762762819967,0.38044,106320.0,106310.0,0.31235918]
[1762762820167,0.38044,106320.0,106310.0,0.76524088]
[1762762820168,0.32696,106320.0,106310.0,0.76524088]
[1762762820559,0.32696,106320.0,106310.0,0.78227308]
[1762762820868,0.35457,106320.0,106310.0,0.78227308]
[1762762821069,0.37996,106320.0,106310.0,0.69019138]
[1762762821271,0.37996,106320.0,106310.0,0.78227308]
[1762762822567,0.37996,106320.0,106310.0,0.92967308]
[1762762825374,0.32696,106320.0,106310.0,1.16483308]
[1762762825575,0.32498109,106330.0,106320.0,0.1569763]
[1762762825764,0.32498109,106330.0,106320.0,0.61205603]
[1762762826469,0.04961508,106340.0,106330.0,0.0629]
[1762762826671,0.37445508,106340.0,106330.0,0.67940812]
[1762762827573,0.38045508,106340.0,106330.0,0.68140812]
[1762762828076,0.38345508,106340.0,106330.0,0.68240812]
[1762762828877,0.38345508,106340.0,106330.0,0.59032642]
[1762762829080,0.38345508,106340.0,106330.0,0.68240812]
[1762762829271,0.33407508,106340.0,106330.0,0.69551042]
[1762762829577,0.00923508,106340.0,106330.0,0.69547733]
[1762762829772,0.03446508,106340.0,106330.0,0.62814953]
[1762762829970,0.03446508,106340.0,106330.0,0.69546953]
[1762762830168,0.00923508,106340.0,106330.0,0.69546953]
[1762762830679,0.00923508,106340.0,106330.0,1.02026953]
[1762762831172,0.00223508,106340.0,106330.0,1.02826953]
[1762762831372,0.00323508,106340.0,106330.0,0.71146953]
[1762762831877,0.00323508,106340.0,106330.0,1.03626953]
[1762762832178,0.00323508,106340.0,106330.0,0.71146953]
[1762762832368,0.00323508,106340.0,106330.0,1.03626953]
[1762762832871,0.00323508,106340.0,106330.0,0.96109046]
[1762762833068,0.00323508,106340.0,106330.0,1.05317216]
[1762762834277,0.00323508,106340.0,106330.0,1.28829216]
[1762762835174,0.00323508,106340.0,106330.0,1.05317216]
[1762762835375,0.00323508,106340.0,106330.0,1.28829216]
[1762762836476,0.00323508,106340.0,106330.0,0.96349216]
[1762762836684,0.00323508,106340.0,106330.0,0.72837216]
[1762762836881,0.00323508,106340.0,106330.0,1.05313216]
[1762762837383,0.00323508,106340.0,106330.0,1.28825216]
[1762762837584,0.00323508,106340.0,106330.0,0.72837216]
[1762762838182,0.00323508,106340.0,106330.0,1.05313216]
[1762762838383,0.00323508,106340.0,106330.0,0.72837216]
[1762762838582,0.00323508,106340.0,106330.0,1.05313216]
[1762762838785,0.00323508,106340.0,106330.0,0.72837216]
[1762762838975,0.00323508,106340.0,106330.0,1.05313216]
[1762762840187,0.00323508,106340.0,106330.0,1.20053216]
[1762762841085,0.00323508,106340.0,106330.0,1.56133216]
[1762762843388,0.00323508,106340.0,106330.0,1.56129216]
[1762762843989,0.00323508,106340.0,106330.0,1.23657216]
[1762762844287,0.09729228,106340.0,106330.0,1.56129216]
[1762762844484,0.00323508,106340.0,106330.0,1.23657216]
[1762762844885,0.00323508,106340.0,106330.0,1.56129216]
[1762762845190,0.00323508,106340.0,106330.0,1.23657216]
[1762762845492,0.00323508,106340.0,106330.0,1.47706953]
[1762762845675,0.00323508,106340.0,106330.0,1.15234953]
[1762762845879,0.00323508,106340.0,106330.0,1.47706953]
[1762762846081,0.00323508,106340.0,106330.0,1.15234953]
[1762762846281,0.00323508,106340.0,106330.0,1.2365914]
[1762762846882,0.00323508,106340.0,106330.0,1.5613114]
[1762762847183,0.00323508,106340.0,106330.0,1.2365914]
[1762762847392,0.00323508,106340.0,106330.0,1.5613114]
[1762762847587,0.00323508,106340.0,106330.0,1.2365914]
[1762762847787,0.00323508,106340.0,106330.0,1.15234953]
[1762762847988,0.00323508,106340.0,106330.0,1.23662453]
[1762762848187,0.00323508,106340.0,106330.0,1.56134453]
[1762762848581,0.00323508,106340.0,106330.0,1.47706953]
[1762762848785,0.00323508,106340.0,106330.0,1.56139292]
[1762762848982,0.00323508,106340.0,106330.0,0.83979292]
[1762762849182,0.00323508,106340.0,106330.0,1.56139292]
[1762762850686,0.12252228,106340.0,106330.0,1.14260542]
[1762762850890,0.09729228,106340.0,106330.0,1.23667152]
[1762762854593,0.00323508,106340.0,106330.0,1.23667152]
[1762762856492,0.00323508,106340.0,106330.0,1.15234813]
[1762762856897,0.00323508,106340.0,106330.0,1.15222641]
[1762762858788,0.24518236,106340.0,106330.0,1.08431532]
[1762762858994,0.33714234,106340.0,106330.0,1.08431532]
[1762762859290,0.24518236,106340.0,106330.0,1.05816031]
[1762762859593,0.24518236,106340.0,106330.0,1.1762753]
[1762762860092,0.33714234,106340.0,106330.0,1.1762753]
[1762762860293,0.33714234,106340.0,106330.0,1.08431532]
[1762762860697,0.33714234,106340.0,106330.0,1.16895414]
[1762762860884,0.33714234,106340.0,106330.0,1.08431532]
[1762762861084,0.33714234,106340.0,106330.0,0.24460033]
[1762762861396,0.35166234,106340.0,106330.0,0.26634401]
[1762762861891,0.35166234,106340.0,106330.0,0.29464401]
[1762762862396,0.35166234,106340.0,106330.0,0.32143401]
[1762762863487,0.38384508,106340.0,106330.0,0.88534009]
[1762762863695,0.47580506,106340.0,106330.0,0.65329641]
[1762762863894,0.56986226,106340.0,106330.0,0.55923031]